Service area,Service sub division,TVBC Service,Expense type,Detailed expense type,TVBC account code,Date Paid,Transaction Reference, Nett Value ,Supplier Name
External Trading Accounts,Business Parks,Premises & Asset Management,Premises related Expenditure,Miscellaneous Expenses,Service Charge,10/12/2020,319545,-8877.55,Test Valley Borough Council
External Trading Accounts,Business Parks,Premises & Asset Management,Premises related Expenditure,Miscellaneous Expenses,Service Charge,10/12/2020,319544,-7397.97,Test Valley Borough Council
External Trading Accounts,Business Parks,Premises & Asset Management,Premises related Expenditure,Repairs Alterations & Maintenance of Buildings,Building Maint - Non Estates,10/12/2020,314138,-1328.28,Healthy Buildings International
Central Services to the Public,Management & Support Services,Finance,Supplies & Services,Grants & Subscriptions,Grants,22/12/2020,321539,500,Personal Data - Data Protection Act 1998
Cultural & Related,Culture & Heritage,Community and Leisure ,Supplies & Services,Miscellaneous Expenses,Promotions / Special Events,10/12/2020,319176,500,Personal Data - Data Protection Act 1998
Cultural & Related,Culture & Heritage,Community and Leisure ,Supplies & Services,Miscellaneous Expenses,Promotions / Special Events,10/12/2020,319174,500,Bloom
Planning & Development,Community Development,Community and Leisure ,Supplies & Services,Grants & Subscriptions,Grants,03/12/2020,319146,500.4,Clatford Shop Association Ltd
Planning & Development,Economic Development,Planning Policy & Economic Development ,Supplies & Services,"Equipment, Furniture & Materials",Maintenance Of Tools,17/12/2020,320879,420,H2evidence
Central Services to the Public,Management & Support Services,Environmental,Supplies & Services,"Equipment, Furniture & Materials",Maintenance Equip + Materials,24/12/2020,321252,425.78,Southern Air Systems Ltd
Cultural & Related,Culture & Heritage,Premises & Asset Management,Premises related Expenditure,Water Services,Water And Sewerage Charges,17/12/2020,319501,522.26,Castle Water Limited
Central Services to the Public,Management & Support Services,Premises & Asset Management,Third Party Payments,Other Establishments,Private Contractors,01/12/2020,317170,441.38,Spear Electrical Limited
Planning & Development,Development Control,Planning & Building,Supplies & Services,"Printing, Stationery & General Office Expenses",Photocopying Costs,24/12/2020,317569,266.44,Ricoh Uk Ltd
Planning & Development,Planning Policy,Plan Pol & Transport,Supplies & Services,"Printing, Stationery & General Office Expenses",Photocopying Costs,24/12/2020,317569,180.89,Ricoh Uk Ltd
External Trading Accounts,Economic Development,Premises & Asset Management,Supplies & Services,Miscellaneous Expenses,Promotions / Special Events,16/12/2020,319982,448.5,Keycraft Ltd
Central Services to the Public,Management & Support Services,Premises & Asset Management,Employees,Indirect Employee Expenses,Staff Professional Fees,17/12/2020,321022,539,Fiona L Skeats-Sicomori
Planning & Development,Development Control,Planning & Building,Transport Related Expenditure,Contract Hire and Operating Leases,Officer lease cars,17/12/2020,319553,541.02,Arval Uk Ltd
Central Services to the Public,Management & Support Services,Finance,Supplies & Services,"Printing, Stationery & General Office Expenses",Postage Costs,17/12/2020,319866,458.74,Whistl Uk Ltd
External Trading Accounts,Business Parks,Premises & Asset Management,Supplies & Services,Communications & Computing,Land Line Telephone Charges,03/12/2020,319072,26.9,Virgin Media Payments Ltd
Cultural & Related,Culture & Heritage,Premises & Asset Management,Supplies & Services,Communications & Computing,Land Line Telephone Charges,03/12/2020,319072,26,Virgin Media Payments Ltd
Cultural & Related,Culture & Heritage,Premises & Asset Management,Supplies & Services,Communications & Computing,Land Line Telephone Charges,03/12/2020,319072,39,Virgin Media Payments Ltd
Central Services to the Public,Management & Support Services,IT,Supplies & Services,Communications & Computing,Communication Links,03/12/2020,319072,26,Virgin Media Payments Ltd
Central Services to the Public,Management & Support Services,IT,Supplies & Services,Communications & Computing,Communication Links,03/12/2020,319072,67,Virgin Media Payments Ltd
Cultural & Related,Recreation & Sport,Community and Leisure ,Supplies & Services,Communications & Computing,Land Line Telephone Charges,03/12/2020,319072,26,Virgin Media Payments Ltd
Cultural & Related,Recreation & Sport,Community and Leisure ,Supplies & Services,Communications & Computing,Land Line Telephone Charges,03/12/2020,319072,0,Virgin Media Payments Ltd
Cultural & Related,Recreation & Sport,Community and Leisure ,Supplies & Services,Communications & Computing,Land Line Telephone Charges,03/12/2020,319072,13,Virgin Media Payments Ltd
Cultural & Related,Culture & Heritage,Community and Leisure ,Supplies & Services,Communications & Computing,Communication Links,03/12/2020,319072,74.01,Virgin Media Payments Ltd
"Highways, Roads & Transport",Parking Services,Plan Pol & Transport,Supplies & Services,Communications & Computing,Alarm Lines,03/12/2020,319072,37,Virgin Media Payments Ltd
Central Services to the Public,Management & Support Services,Environmental,Supplies & Services,Communications & Computing,Land Line Telephone Charges,03/12/2020,319072,52.75,Virgin Media Payments Ltd
Central Services to the Public,Emergency Planning,Corporate & Democratic,Supplies & Services,Communications & Computing,Land Line Telephone Charges,03/12/2020,319072,78,Virgin Media Payments Ltd
Planning & Development,Planning Policy,Plan Pol & Transport,Employees,Indirect Employee Expenses,Temporary Staff,24/12/2020,321667,467.5,New Forest District Council
Central Services to the Public,Management & Support Services,Environmental,Transport Related Expenditure,Direct Transport Costs,Repair Materials,10/12/2020,317955,469.32,Tructyre Ats
Central Services to the Public,Management & Support Services,Revenues,Supplies & Services,Miscellaneous Expenses,Medical Fees,10/12/2020,319480,560,University Hospital Soton Nhs Foundation Trst
External Trading Accounts,Property Investments,Premises & Asset Management,Premises related Expenditure,Grounds Maintenance Costs,Grounds Maintenance Contracts,10/12/2020,319151,473.19,Landmarks Sustainability Ltd
External Trading Accounts,Property Investments,Premises & Asset Management,Premises related Expenditure,Grounds Maintenance Costs,Grounds Maintenance Contracts,24/12/2020,321724,473.19,Landmarks Sustainability Ltd
Central Services to the Public,Management & Support Services,Finance,Supplies & Services,"Clothes, Uniforms & Laundry",Clothing + Uniforms,03/12/2020,318075,477.96,Whistl Uk Ltd
Planning & Development,Planning Policy,Plan Pol & Transport,Employees,Indirect Employee Expenses,Temporary Staff,15/12/2020,319445,493,New Forest District Council
Environmental & Regulatory,Regulatory Services,Premises & Asset Management,Premises related Expenditure,Water Services,Water And Sewerage Charges,17/12/2020,319497,595.54,Castle Water Limited
Central Services to the Public,Elections,Legal & Democratic,Supplies & Services,"Printing, Stationery & General Office Expenses",Postage Costs,24/12/2020,321258,496.96,Financial Data Management Plc
Central Services to the Public,Management & Support Services,Premises & Asset Management,Third Party Payments,Other Establishments,Private Contractors,10/12/2020,319567,500,Merryhill Asbestos Testing & Consulting Ltd
Central Services to the Public,Management & Support Services,IT,Supplies & Services,Communications & Computing,Software Maintenance,03/12/2020,318149,500,Winchester City Council
Cultural & Related,Culture & Heritage,Community and Leisure ,Supplies & Services,Miscellaneous Expenses,Promotions / Special Events,17/12/2020,320880,600,The Artroom
Central Services to the Public,Management & Support Services,Premises & Asset Management,Premises related Expenditure,Energy Costs,Gas,17/12/2020,319520,502.08,Total Gas & Power Ltd
Cultural & Related,Open Spaces,Environmental,Supplies & Services,"Equipment, Furniture & Materials",Purchase Equip + Materials,24/12/2020,319121,505.4,Tudor Environmental
Cultural & Related,Open Spaces,Environmental,Supplies & Services,"Equipment, Furniture & Materials",Purchase Equip + Materials,24/12/2020,319470,508.3,Spaldings (Uk) Limited
Cultural & Related,Open Spaces,Environmental,Supplies & Services,Miscellaneous Expenses,Waste Collection,24/12/2020,320540,509.16,Collard Enviromental Ltd
Central Services to the Public,Management & Support Services,IT,Support Services,IT,IT Hardware costs,24/12/2020,320910,520.14,Nouveau Solutions Ltd
Environmental & Regulatory,Waste & Recycling Management,Environmental,Supplies & Services,"Equipment, Furniture & Materials",Purchase Equip + Materials,10/12/2020,319048,180,Mb Garage Services Ltd
Central Services to the Public,Management & Support Services,Environmental,Supplies & Services,"Equipment, Furniture & Materials",Purchase Tools,10/12/2020,319048,350,Mb Garage Services Ltd
Cultural & Related,Culture & Heritage,Premises & Asset Management,Premises related Expenditure,Repairs Alterations & Maintenance of Buildings,Planned Maintenance - Non Est,10/12/2020,319150,534.88,Bpc Energy Ltd
Planning & Development,Planning Policy,Plan Pol & Transport,Employees,Indirect Employee Expenses,Temporary Staff,15/12/2020,319444,535.5,New Forest District Council
Central Services to the Public,Management & Support Services,Finance,Supplies & Services,"Printing, Stationery & General Office Expenses",Postage Costs,10/12/2020,318870,537.06,Whistl Uk Ltd
Environmental & Regulatory,Waste management,Environmental,Transport Related Expenditure,Direct Transport Costs,Repair Materials,03/12/2020,318590,547.97,Dennis Eagle Ltd
Central Services to the Public,Management & Support Services,Revenues,Supplies & Services,Miscellaneous Expenses,Security Services,10/12/2020,319988,62.8,Jade Security Services Ltd
"Highways, Roads & Transport",Parking Services,Plan Pol & Transport,Supplies & Services,Services,Professional Fees,10/12/2020,319988,496.66,Jade Security Services Ltd
Cultural & Related,Open Spaces,Environmental,Supplies & Services,Services,Training Courses,10/12/2020,319156,373.34,G A R Training Services Ltd
Central Services to the Public,Management & Support Services,Environmental,Supplies & Services,Services,Training Courses,10/12/2020,319156,186.66,G A R Training Services Ltd
Central Services to the Public,Management & Support Services,Premises & Asset Management,Third Party Payments,Other Establishments,Private Contractors,17/12/2020,320884,566.74,Andover Glass Works Ltd
Cultural & Related,Open Spaces,Community and Leisure ,Premises related Expenditure,Grounds Maintenance Costs,Gm - Additional Works,24/12/2020,321657,569,Personal Data - Data Protection Act 1998
Central Services,Corporate & Democratic Core,Corporate & Democratic,Supplies & Services,Services,Legal Fees,24/12/2020,321628,575,Radcliffe Chambers
Cultural & Related,Open Spaces,Community and Leisure ,Premises related Expenditure,Repairs Alterations & Maintenance of Buildings,Estates premises costs - AMP,24/12/2020,320596,580,Austin Foot Ecology
Central Services to the Public,Local Tax Collection,Revenues,Supplies & Services,Communications & Computing,Software Maintenance,24/12/2020,321636,585,Victoria Solutions Limited
Cultural & Related,Open Spaces,Environmental,Supplies & Services,"Equipment, Furniture & Materials",Purchase Equip + Materials,17/12/2020,319994,586.5,Wildflower Turf Ltd
Central Services to the Public,Management & Support Services,Environmental,Transport Related Expenditure,Direct Transport Costs,Repair Materials,03/12/2020,318591,592.63,Dennis Eagle Ltd
Housing Services,Homelessness,Housing and Environmental Health ,Supplies & Services,Services,Training Courses,17/12/2020,320597,450,Housing Reviews
Housing Services,"Housing strategy, advice and enabling",Housing and Environmental Health ,Supplies & Services,Services,Training Courses,17/12/2020,320597,150,Housing Reviews
External Trading Accounts,Business Parks,Premises & Asset Management,Supplies & Services,Miscellaneous Expenses,Waste Collection,10/12/2020,319147,608.16,Basingstoke Skip Hire & Sthrn Waste Mgt Ltd
Central Services to the Public,Management & Support Services,Environmental,Supplies & Services,"Clothes, Uniforms & Laundry",Clothing + Uniforms,10/12/2020,319576,303.27,Smi Group
Central Services to the Public,Management & Support Services,Environmental,Supplies & Services,Miscellaneous Expenses,Health And Safety,10/12/2020,319576,282.62,Smi Group
Planning & Development,Economic Development,Planning Policy & Economic Development ,Supplies & Services,Grants & Subscriptions,Grants,16/12/2020,320897,750,The Dogchester Hotel
Planning & Development,Economic Development,Planning Policy & Economic Development ,Supplies & Services,Grants & Subscriptions,Grants,16/12/2020,320898,750,Personal Data - Data Protection Act 1998
Planning & Development,Economic Development,Planning Policy & Economic Development ,Supplies & Services,Grants & Subscriptions,Grants,23/12/2020,321413,750,Pickle & Friends Doggy Day
Central Services to the Public,Management & Support Services,Environmental,Supplies & Services,"Clothes, Uniforms & Laundry",Clothing + Uniforms,10/12/2020,319055,371.89,Smi Group
Central Services to the Public,Management & Support Services,Environmental,Supplies & Services,Miscellaneous Expenses,Health And Safety,10/12/2020,319055,253.16,Smi Group
Cultural & Related,Open Spaces,Environmental,Supplies & Services,"Equipment, Furniture & Materials",Purchase Equip + Materials,10/12/2020,318152,632.85,Spaldings (Uk) Limited
Central Services to the Public,Management & Support Services,Premises & Asset Management,Supplies & Services,"Equipment, Furniture & Materials",Maintenance Of Tools,10/12/2020,320000,650,Afi-Uplift Limited
"Highways, Roads & Transport",Highways and roads - maintenance,Plan Pol & Transport,Premises related Expenditure,Repairs Alterations & Maintenance of Buildings,General Repairs,22/12/2020,321253,653,Externiture Ltd
Central Services to the Public,Elections,Legal & Democratic,Supplies & Services,"Printing, Stationery & General Office Expenses",External Printing,01/12/2020,318143,655.4,Financial Data Management Plc
Environmental & Regulatory,Waste management,Environmental,Transport Related Expenditure,Direct Transport Costs,Repair Materials,10/12/2020,319448,655.96,Dennis Eagle Ltd
Environmental & Regulatory,Waste management,Environmental,Transport Related Expenditure,Direct Transport Costs,Repair Materials,03/12/2020,318072,659.32,Dennis Eagle Ltd
Planning & Development,Development Control,Planning & Building,Supplies & Services,Services,Legal Fees,24/12/2020,321631,660,Cornerstone Barristers
Planning & Development,Economic Development,Planning Policy & Economic Development ,Supplies & Services,Services,Training Courses,24/12/2020,321651,797.5,Coyote Fitness Uk
Central Services to the Public,Management & Support Services,Premises & Asset Management,Third Party Payments,Other Establishments,Private Contractors,24/12/2020,321314,690,Axis Fire And Security Services Ltd
"Highways, Roads & Transport",Parking Services,Plan Pol & Transport,Transport Related Costs,Management Fee,Car Park charges,10/12/2020,319557,693.42,Park Now Limited
Environmental & Regulatory,Street Cleansing (not chargeable to Highways),Environmental,Supplies & Services,Miscellaneous Expenses,Hazardous / Fly Tipped Waste,24/12/2020,319538,700,Bkp Waste & Recycling Ltd
Central Services to the Public,Local Tax Collection,Revenues,Supplies & Services,"Printing, Stationery & General Office Expenses",Stationery,03/12/2020,317964,706,Hound Envelopes Limited
Cultural & Related,Open Spaces,Environmental,Supplies & Services,"Equipment, Furniture & Materials",Purchase Equip + Materials,10/12/2020,319995,714.54,A T H Machinery Ltd
Environmental & Regulatory,Waste & Recycling Management,Environmental,Supplies & Services,Miscellaneous Expenses,Recycling Campaign,22/12/2020,319472,733,Cammegh Davies Fleming
Environmental & Regulatory,Regulatory Services,Housing and Environmental Health ,Supplies & Services,Grants & Subscriptions,Subscriptions,24/12/2020,321638,744.32,Ferret Information Systems Ltd
Cultural & Related,Open Spaces,Environmental,Transport Related Expenditure,Direct Transport Costs,Repair Materials,03/12/2020,318317,749.86,Hollies Engineering
Cultural & Related,Culture & Heritage,Estates and Economic Development ,Third Party Payments,Private contractors,Main Contractor Costs,24/12/2020,321315,750,The Genesis Design Studio Ltd
Central Services,Corporate & Democratic Core,Corporate & Democratic,Supplies & Services,Services,Professional Advice,24/12/2020,319987,750,Dc Commercial Solicitors
Cultural & Related,Culture & Heritage,Community and Leisure ,Supplies & Services,Miscellaneous Expenses,Promotions / Special Events,10/12/2020,319175,900,Personal Data - Data Protection Act 1998
Central Services to the Public,Management & Support Services,Estates and Economic Development ,Third Party Payments,Private contractors,Main Contractor Costs,15/12/2020,319705,750,Fieldform
Environmental & Regulatory,Waste management,Environmental,Transport Related Expenditure,Direct Transport Costs,Repair Materials,03/12/2020,318135,762.08,Dennis Eagle Ltd
Central Services to the Public,Management & Support Services,Premises & Asset Management,Premises related Expenditure,Repairs Alterations & Maintenance of Buildings,Planned Maintenance - Non Est,17/12/2020,320889,779.1,Basingstoke Fire Protection Ltd
Central Services to the Public,Elections,Legal & Democratic,Supplies & Services,"Printing, Stationery & General Office Expenses",Postage Costs,10/12/2020,319102,787.04,Financial Data Management Plc
Central Services to the Public,Management & Support Services,IT,Supplies & Services,Communications & Computing,Software Maintenance,24/12/2020,320595,792.25,Cetus Solutions Ltd
Cultural & Related,Open Spaces,Environmental,Supplies & Services,Miscellaneous Expenses,Waste Collection,24/12/2020,319068,803.28,Collard Enviromental Ltd
Cultural & Related,Open Spaces,Environmental,Transport Related Expenditure,Direct Transport Costs,Repair Materials,03/12/2020,318867,806.06,Hunt Forest Group Ltd
Central Services to the Public,Management & Support Services,Premises & Asset Management,Supplies & Services,Communications & Computing,Telephone Tracking System,10/12/2020,319053,48,Teletrac Navman (Uk) Ltd
Environmental & Regulatory,Regulatory Services,Housing and Environmental Health ,Supplies & Services,Communications & Computing,Telephone Tracking System,10/12/2020,319053,6,Teletrac Navman (Uk) Ltd
Environmental & Regulatory,Regulatory Services,Housing and Environmental Health ,Supplies & Services,Communications & Computing,Telephone Tracking System,10/12/2020,319053,12,Teletrac Navman (Uk) Ltd
Cultural & Related,Open Spaces,Community and Leisure ,Supplies & Services,Communications & Computing,Telephone Tracking System,10/12/2020,319053,6,Teletrac Navman (Uk) Ltd
Cultural & Related,Open Spaces,Community and Leisure ,Supplies & Services,Communications & Computing,Telephone Tracking System,10/12/2020,319053,6,Teletrac Navman (Uk) Ltd
"Highways, Roads & Transport",Parking Services,Plan Pol & Transport,Supplies & Services,Communications & Computing,Telephone Tracking System,10/12/2020,319053,12,Teletrac Navman (Uk) Ltd
Cultural & Related,Open Spaces,Environmental,Supplies & Services,Communications & Computing,Telephone Tracking System,10/12/2020,319053,351.99,Teletrac Navman (Uk) Ltd
Environmental & Regulatory,Waste & Recycling Management,Environmental,Supplies & Services,Communications & Computing,Telephone Tracking System,10/12/2020,319053,36,Teletrac Navman (Uk) Ltd
Environmental & Regulatory,Street Cleansing (not chargeable to Highways),Environmental,Supplies & Services,Communications & Computing,Telephone Tracking System,10/12/2020,319053,174.7,Teletrac Navman (Uk) Ltd
Environmental & Regulatory,Waste management,Environmental,Supplies & Services,Communications & Computing,Telephone Tracking System,10/12/2020,319053,128,Teletrac Navman (Uk) Ltd
Environmental & Regulatory,Waste management,Environmental,Supplies & Services,Communications & Computing,Telephone Tracking System,10/12/2020,319053,12,Teletrac Navman (Uk) Ltd
Central Services to the Public,Management & Support Services,Environmental,Supplies & Services,Communications & Computing,Telephone Tracking System,10/12/2020,319053,18,Teletrac Navman (Uk) Ltd
Environmental & Regulatory,Street Cleansing (not chargeable to Highways),Environmental,Transport Related Expenditure,Direct Transport Costs,Tyres,10/12/2020,319491,99.55,Tructyre Ats
Environmental & Regulatory,Waste management,Environmental,Transport Related Expenditure,Direct Transport Costs,Tyres,10/12/2020,319491,717.64,Tructyre Ats
Cultural & Related,Culture & Heritage,Premises & Asset Management,Premises related Expenditure,Repairs Alterations & Maintenance of Buildings,Planned Maintenance - Non Est,01/12/2020,318612,50,Doorgear Limited
Cultural & Related,Culture & Heritage,Premises & Asset Management,Premises related Expenditure,Repairs Alterations & Maintenance of Buildings,Planned Maintenance - Non Est,01/12/2020,318612,75,Doorgear Limited
Cultural & Related,Culture & Heritage,Premises & Asset Management,Premises related Expenditure,Repairs Alterations & Maintenance of Buildings,Planned Maintenance - Non Est,01/12/2020,318612,50,Doorgear Limited
Cultural & Related,Culture & Heritage,Premises & Asset Management,Premises related Expenditure,Repairs Alterations & Maintenance of Buildings,Planned Maintenance - Non Est,01/12/2020,318612,153,Doorgear Limited
Central Services to the Public,Management & Support Services,Premises & Asset Management,Premises related Expenditure,Repairs Alterations & Maintenance of Buildings,Planned Maintenance - Non Est,01/12/2020,318612,100,Doorgear Limited
Central Services to the Public,Management & Support Services,Premises & Asset Management,Premises related Expenditure,Repairs Alterations & Maintenance of Buildings,Planned Maintenance - Non Est,01/12/2020,318612,50,Doorgear Limited
Cultural & Related,Recreation & Sport,Community and Leisure ,Premises related Expenditure,Repairs Alterations & Maintenance of Buildings,Planned Maintenance - Non Est,01/12/2020,318612,200,Doorgear Limited
Environmental & Regulatory,"Cemetery, Cremation and Mortuary Services",Community and Leisure ,Premises related Expenditure,Repairs Alterations & Maintenance of Buildings,Planned Maintenance - Non Est,01/12/2020,318612,102,Doorgear Limited
"Highways, Roads & Transport",Parking Services,Plan Pol & Transport,Premises related Expenditure,Repairs Alterations & Maintenance of Buildings,Planned Maintenance - Non Est,01/12/2020,318612,50,Doorgear Limited
Planning & Development,Community Development,Community and Leisure ,Supplies & Services,Grants & Subscriptions,Grants,17/12/2020,320998,1000,Upper Clatford Parish Council
"Highways, Roads & Transport",Parking Services,Plan Pol & Transport,Supplies & Services,Services,Legal Fees,22/12/2020,321535,1000,Hmcs
Central Services to the Public,Management & Support Services,HR Services,Supplies & Services,Miscellaneous Expenses,Medical Fees,01/12/2020,318605,1030.18,Flu Xpress Ltd
Central Services to the Public,Management & Support Services,Premises & Asset Management,Supplies & Services,"Equipment, Furniture & Materials",Equipment Hire,10/12/2020,319583,862.5,Crown Water & Coffee
Central Services to the Public,Management & Support Services,IT,Supplies & Services,Communications & Computing,Land Line Telephone Charges,17/12/2020,320785,864.97,Gamma
Central Services to the Public,Management & Support Services,HR Services,Supplies & Services,Services,External Training Consultants,17/12/2020,320532,895,Peta Limited
"Highways, Roads & Transport",Parking Services,Plan Pol & Transport,Supplies & Services,Grants & Subscriptions,Subscriptions,24/12/2020,320545,906,British Parking Association
Central Services to the Public,Management & Support Services,IT,Supplies & Services,Communications & Computing,Computer Hardware,10/12/2020,319973,935,Virtual Effect Ltd
Central Services to the Public,Management & Support Services,Premises & Asset Management,Third Party Payments,Other Establishments,Private Contractors,22/12/2020,321313,944.5,Clearwater 2010 Ltd
Central Services to the Public,Management & Support Services,Premises & Asset Management,Third Party Payments,Other Establishments,Private Contractors,10/12/2020,319144,948.76,Spear Electrical Limited
Cultural & Related,Culture & Heritage,Community and Leisure ,Third Party Payments,Private contractors,Main Contractor Costs,10/12/2020,319530,950,Real Estate Strategies Ltd
Cultural & Related,Culture & Heritage,Community and Leisure ,Third Party Payments,Private contractors,Main Contractor Costs,22/12/2020,321316,950,Real Estate Strategies Ltd
Cultural & Related,Culture & Heritage,Community and Leisure ,Third Party Payments,Private contractors,Main Contractor Costs,22/12/2020,321317,950,Real Estate Strategies Ltd
Cultural & Related,Culture & Heritage,Premises & Asset Management,Premises related Expenditure,Repairs Alterations & Maintenance of Buildings,Building Maint - Non Estates,10/12/2020,319529,950,Real Estate Strategies Ltd
Central Services to the Public,Management & Support Services,Finance,Supplies & Services,Services,Professional Fees,03/12/2020,317911,1000,Dc Commercial Solicitors
Environmental & Regulatory,Waste management,Environmental,Transport Related Expenditure,Direct Transport Costs,Repair Materials,03/12/2020,318073,1054.02,Dennis Eagle Ltd
Planning & Development,Development Control,Planning & Building,Employees,Indirect Employee Expenses,Temporary Staff,01/12/2020,317901,1059,G2 Recruitment Solutions
Planning & Development,Development Control,Planning & Building,Employees,Indirect Employee Expenses,Temporary Staff,10/12/2020,319700,1059,G2 Recruitment Solutions
Central Services to the Public,Management & Support Services,Legal & Democratic,Supplies & Services,Services,Legal Fees,22/12/2020,320904,1275,Radcliffe Chambers
Environmental & Regulatory,Waste management,Environmental,Transport Related Expenditure,Direct Transport Costs,Repair Materials,17/12/2020,319984,308.24,Dennis Eagle Ltd
Environmental & Regulatory,Waste management,Environmental,Transport Related Expenditure,Direct Transport Costs,Repair Materials,17/12/2020,319984,762.68,Dennis Eagle Ltd
Housing Services,Housing Benefits ,Revenues,Employees,Indirect Employee Expenses,Temporary Staff,24/12/2020,321281,1330,Personal Data - Data Protection Act 1998
Central Services to the Public,Local Tax Collection,Revenues,Supplies & Services,Communications & Computing,Software Maintenance,22/12/2020,319455,1110,Otech Ltd
Central Services to the Public,Management & Support Services,Estates and Economic Development ,Third Party Payments,Private contractors,Main Contractor Costs,24/12/2020,320992,1115,Labosport Ltd
Planning & Development,Development Control,Planning & Building,Supplies & Services,Services,Legal Fees,24/12/2020,321340,1125,Cornerstone Barristers
Central Services to the Public,Management & Support Services,HR Services,Supplies & Services,Services,Training Courses,03/12/2020,319067,1140,Mind Matters Training
Cultural & Related,Tourism,Planning Policy & Economic Development ,Premises related Expenditure,Repairs Alterations & Maintenance of Buildings,Planned Maintenance - Non Est,03/12/2020,318167,70.99,Temple Lifts Ltd
Cultural & Related,Culture & Heritage,Premises & Asset Management,Premises related Expenditure,Repairs Alterations & Maintenance of Buildings,Planned Maintenance - Non Est,03/12/2020,318167,20.09,Temple Lifts Ltd
Central Services to the Public,Management & Support Services,Premises & Asset Management,Premises related Expenditure,Repairs Alterations & Maintenance of Buildings,Planned Maintenance - Non Est,03/12/2020,318167,840,Temple Lifts Ltd
Cultural & Related,Recreation & Sport,Community and Leisure ,Premises related Expenditure,Repairs Alterations & Maintenance of Buildings,Planned Maintenance - Non Est,03/12/2020,318167,210,Temple Lifts Ltd
Central Services to the Public,Elections,Legal & Democratic,Supplies & Services,"Printing, Stationery & General Office Expenses",Postage Costs,01/12/2020,318144,1141.71,Financial Data Management Plc
Cultural & Related,Open Spaces,Environmental,Supplies & Services,"Equipment, Furniture & Materials",Purchase Equip + Materials,03/12/2020,317879,1142.22,Tudor Environmental
Central Services to the Public,Management & Support Services,Estates and Economic Development ,Third Party Payments,Private contractors,Main Contractor Costs,17/12/2020,320565,1150,Fieldform
Cultural & Related,Open Spaces,Environmental,Transport Related Expenditure,Direct Transport Costs,Tyres,10/12/2020,319049,21.84,Tructyre Ats
Environmental & Regulatory,Waste & Recycling Management,Environmental,Transport Related Expenditure,Direct Transport Costs,Tyres,10/12/2020,319049,661.79,Tructyre Ats
Environmental & Regulatory,Street Cleansing (not chargeable to Highways),Environmental,Transport Related Expenditure,Direct Transport Costs,Tyres,10/12/2020,319049,21.84,Tructyre Ats
Environmental & Regulatory,Waste management,Environmental,Transport Related Expenditure,Direct Transport Costs,Tyres,10/12/2020,319049,21.84,Tructyre Ats
Environmental & Regulatory,Waste management,Environmental,Transport Related Expenditure,Direct Transport Costs,Tyres,10/12/2020,319049,426.65,Tructyre Ats
Central Services to the Public,Elections,Legal & Democratic,Supplies & Services,"Printing, Stationery & General Office Expenses",Written Media,01/12/2020,318145,1425,Wildy & Sons Ltd
Environmental & Regulatory,Regulatory Services,Housing and Environmental Health ,Supplies & Services,Services,Professional Fees,15/12/2020,319704,1440,Access Independent Ltd
Central Services to the Public,Management & Support Services,Finance,Supplies & Services,"Printing, Stationery & General Office Expenses",Postage Costs,24/12/2020,320783,1207.5,Whistl Uk Ltd
"Highways, Roads & Transport",Parking Services,Plan Pol & Transport,Supplies & Services,"Equipment, Furniture & Materials",Purchase Equip + Materials,24/12/2020,312706,1212,Ricoh Uk Ltd
Environmental & Regulatory,Waste management,Environmental,Transport Related Expenditure,Direct Transport Costs,Repair Materials,17/12/2020,320972,1307.82,Adams Morey Ltd
Central Services,Corporate & Democratic Core,Corporate & Democratic,Supplies & Services,Services,Professional Fees,15/12/2020,319051,1586.4,Vale - Hr Consultant Ltd
Central Services to the Public,Management & Support Services,Premises & Asset Management,Premises related Expenditure,Energy Costs,Gas,15/12/2020,319525,1324.86,Total Gas & Power Ltd
Planning & Development,Planning Policy,Plan Pol & Transport,Supplies & Services,Grants & Subscriptions,Grants,01/12/2020,317669,1595.23,Hampshire County Council
External Trading Accounts,Business Parks,Premises & Asset Management,Premises related Expenditure,Repairs Alterations & Maintenance of Buildings,Estates premises costs - AMP,24/12/2020,321272,1350,Sonic Scaffolding 2000 Ltd
Planning & Development,Development Control,Planning & Building,Employees,Indirect Employee Expenses,Temporary Staff,17/12/2020,320572,1412,G2 Recruitment Solutions
External Trading Accounts,Business Parks,Premises & Asset Management,Premises related Expenditure,Repairs Alterations & Maintenance of Buildings,Planned Maintenance - Non Est,24/12/2020,321659,144.09,Healthy Buildings International
Cultural & Related,Culture & Heritage,Premises & Asset Management,Premises related Expenditure,Repairs Alterations & Maintenance of Buildings,Planned Maintenance - Non Est,24/12/2020,321659,96.06,Healthy Buildings International
Cultural & Related,Culture & Heritage,Premises & Asset Management,Premises related Expenditure,Repairs Alterations & Maintenance of Buildings,Planned Maintenance - Non Est,24/12/2020,321659,96.06,Healthy Buildings International
Cultural & Related,Culture & Heritage,Premises & Asset Management,Premises related Expenditure,Repairs Alterations & Maintenance of Buildings,Planned Maintenance - Non Est,24/12/2020,321659,96.06,Healthy Buildings International
Cultural & Related,Culture & Heritage,Premises & Asset Management,Premises related Expenditure,Repairs Alterations & Maintenance of Buildings,Planned Maintenance - Non Est,24/12/2020,321659,48.03,Healthy Buildings International
Central Services to the Public,Management & Support Services,Premises & Asset Management,Premises related Expenditure,Repairs Alterations & Maintenance of Buildings,Planned Maintenance - Non Est,24/12/2020,321659,96.06,Healthy Buildings International
Central Services to the Public,Management & Support Services,Premises & Asset Management,Premises related Expenditure,Repairs Alterations & Maintenance of Buildings,Planned Maintenance - Non Est,24/12/2020,321659,96.06,Healthy Buildings International
Central Services to the Public,Management & Support Services,Premises & Asset Management,Premises related Expenditure,Repairs Alterations & Maintenance of Buildings,Planned Maintenance - Non Est,24/12/2020,321659,96.06,Healthy Buildings International
Environmental & Regulatory,Regulatory Services,Premises & Asset Management,Premises related Expenditure,Repairs Alterations & Maintenance of Buildings,Planned Maintenance - Non Est,24/12/2020,321659,96.06,Healthy Buildings International
Cultural & Related,Recreation & Sport,Community and Leisure ,Premises related Expenditure,Repairs Alterations & Maintenance of Buildings,Planned Maintenance - Non Est,24/12/2020,321659,48.03,Healthy Buildings International
Cultural & Related,Recreation & Sport,Community and Leisure ,Premises related Expenditure,Repairs Alterations & Maintenance of Buildings,Planned Maintenance - Non Est,24/12/2020,321659,96.06,Healthy Buildings International
Cultural & Related,Recreation & Sport,Community and Leisure ,Premises related Expenditure,Repairs Alterations & Maintenance of Buildings,Planned Maintenance - Non Est,24/12/2020,321659,96.06,Healthy Buildings International
Cultural & Related,Recreation & Sport,Community and Leisure ,Premises related Expenditure,Repairs Alterations & Maintenance of Buildings,Planned Maintenance - Non Est,24/12/2020,321659,96.06,Healthy Buildings International
Cultural & Related,Recreation & Sport,Community and Leisure ,Premises related Expenditure,Repairs Alterations & Maintenance of Buildings,Planned Maintenance - Non Est,24/12/2020,321659,96.06,Healthy Buildings International
Environmental & Regulatory,"Cemetery, Cremation and Mortuary Services",Community and Leisure ,Premises related Expenditure,Repairs Alterations & Maintenance of Buildings,Planned Maintenance - Non Est,24/12/2020,321659,96.06,Healthy Buildings International
"Highways, Roads & Transport",Parking Services,Plan Pol & Transport,Premises related Expenditure,Repairs Alterations & Maintenance of Buildings,Planned Maintenance - Non Est,24/12/2020,321659,48.03,Healthy Buildings International
Central Services to the Public,Management & Support Services,Premises & Asset Management,Third Party Payments,Other Establishments,Private Contractors,10/12/2020,319526,1450,Smrs Fabrication & Welding Ltd
External Trading Accounts,Business Parks,Premises & Asset Management,Premises related Expenditure,Repairs Alterations & Maintenance of Buildings,Planned Maintenance - Non Est,10/12/2020,316906,48.03,Healthy Buildings International
External Trading Accounts,Business Parks,Premises & Asset Management,Premises related Expenditure,Repairs Alterations & Maintenance of Buildings,Planned Maintenance - Non Est,10/12/2020,316906,192.12,Healthy Buildings International
Cultural & Related,Culture & Heritage,Premises & Asset Management,Premises related Expenditure,Repairs Alterations & Maintenance of Buildings,Planned Maintenance - Non Est,10/12/2020,316906,48.03,Healthy Buildings International
Cultural & Related,Culture & Heritage,Premises & Asset Management,Premises related Expenditure,Repairs Alterations & Maintenance of Buildings,Planned Maintenance - Non Est,10/12/2020,316906,48.03,Healthy Buildings International
Cultural & Related,Culture & Heritage,Premises & Asset Management,Premises related Expenditure,Repairs Alterations & Maintenance of Buildings,Planned Maintenance - Non Est,10/12/2020,316906,48.03,Healthy Buildings International
Cultural & Related,Culture & Heritage,Premises & Asset Management,Premises related Expenditure,Repairs Alterations & Maintenance of Buildings,Planned Maintenance - Non Est,10/12/2020,316906,48.03,Healthy Buildings International
Cultural & Related,Culture & Heritage,Premises & Asset Management,Premises related Expenditure,Repairs Alterations & Maintenance of Buildings,Planned Maintenance - Non Est,10/12/2020,316906,48.03,Healthy Buildings International
Cultural & Related,Culture & Heritage,Premises & Asset Management,Premises related Expenditure,Repairs Alterations & Maintenance of Buildings,Planned Maintenance - Non Est,10/12/2020,316906,48.03,Healthy Buildings International
Cultural & Related,Culture & Heritage,Premises & Asset Management,Premises related Expenditure,Repairs Alterations & Maintenance of Buildings,Planned Maintenance - Non Est,10/12/2020,316906,48.03,Healthy Buildings International
Central Services to the Public,Management & Support Services,Premises & Asset Management,Premises related Expenditure,Repairs Alterations & Maintenance of Buildings,Planned Maintenance - Non Est,10/12/2020,316906,48.03,Healthy Buildings International
Central Services to the Public,Management & Support Services,Premises & Asset Management,Premises related Expenditure,Repairs Alterations & Maintenance of Buildings,Planned Maintenance - Non Est,10/12/2020,316906,48.03,Healthy Buildings International
Central Services to the Public,Management & Support Services,Premises & Asset Management,Premises related Expenditure,Repairs Alterations & Maintenance of Buildings,Planned Maintenance - Non Est,10/12/2020,316906,48.03,Healthy Buildings International
Central Services to the Public,Management & Support Services,Premises & Asset Management,Premises related Expenditure,Repairs Alterations & Maintenance of Buildings,Planned Maintenance - Non Est,10/12/2020,316906,48.03,Healthy Buildings International
Environmental & Regulatory,Regulatory Services,Premises & Asset Management,Premises related Expenditure,Repairs Alterations & Maintenance of Buildings,Planned Maintenance - Non Est,10/12/2020,316906,96.06,Healthy Buildings International
Cultural & Related,Recreation & Sport,Community and Leisure ,Premises related Expenditure,Repairs Alterations & Maintenance of Buildings,Planned Maintenance - Non Est,10/12/2020,316906,48.03,Healthy Buildings International
Cultural & Related,Recreation & Sport,Community and Leisure ,Premises related Expenditure,Repairs Alterations & Maintenance of Buildings,Planned Maintenance - Non Est,10/12/2020,316906,48.03,Healthy Buildings International
Cultural & Related,Recreation & Sport,Community and Leisure ,Premises related Expenditure,Repairs Alterations & Maintenance of Buildings,Planned Maintenance - Non Est,10/12/2020,316906,48.03,Healthy Buildings International
Cultural & Related,Recreation & Sport,Community and Leisure ,Premises related Expenditure,Repairs Alterations & Maintenance of Buildings,Planned Maintenance - Non Est,10/12/2020,316906,48.03,Healthy Buildings International
Cultural & Related,Recreation & Sport,Community and Leisure ,Premises related Expenditure,Repairs Alterations & Maintenance of Buildings,Planned Maintenance - Non Est,10/12/2020,316906,48.03,Healthy Buildings International
Cultural & Related,Recreation & Sport,Community and Leisure ,Premises related Expenditure,Repairs Alterations & Maintenance of Buildings,Planned Maintenance - Non Est,10/12/2020,316906,48.03,Healthy Buildings International
Cultural & Related,Recreation & Sport,Community and Leisure ,Premises related Expenditure,Repairs Alterations & Maintenance of Buildings,Planned Maintenance - Non Est,10/12/2020,316906,48.03,Healthy Buildings International
Environmental & Regulatory,"Cemetery, Cremation and Mortuary Services",Community and Leisure ,Premises related Expenditure,Repairs Alterations & Maintenance of Buildings,Planned Maintenance - Non Est,10/12/2020,316906,48.03,Healthy Buildings International
Environmental & Regulatory,"Cemetery, Cremation and Mortuary Services",Community and Leisure ,Premises related Expenditure,Repairs Alterations & Maintenance of Buildings,Planned Maintenance - Non Est,10/12/2020,316906,48.03,Healthy Buildings International
Cultural & Related,Open Spaces,Community and Leisure ,Premises related Expenditure,Repairs Alterations & Maintenance of Buildings,Planned Maintenance - Non Est,10/12/2020,316906,48.03,Healthy Buildings International
Cultural & Related,Culture & Heritage,Community and Leisure ,Premises related Expenditure,Repairs Alterations & Maintenance of Buildings,Planned Maintenance - Non Est,10/12/2020,316906,48.03,Healthy Buildings International
"Highways, Roads & Transport",Parking Services,Plan Pol & Transport,Premises related Expenditure,Repairs Alterations & Maintenance of Buildings,Planned Maintenance - Non Est,10/12/2020,316906,96.06,Healthy Buildings International
"Highways, Roads & Transport",Public Transport,Plan Pol & Transport,Third Party Payments,Transport Operators in Respect of Concessionary Fares,Voluntary Orgs Reimbursement,24/12/2020,320870,1829,Andover Neighbourcare
Environmental & Regulatory,Regulatory Services,Housing and Environmental Health ,Supplies & Services,Grants and subscriptions,Capital Grants,17/12/2020,321019,1850,Bentley Mobility Services
Central Services to the Public,Management & Support Services,Estates and Economic Development ,Third Party Payments,Private contractors,Main Contractor Costs,10/12/2020,318163,490,Ministry Of Play Ltd
Cultural & Related,Recreation & Sport,Community and Leisure ,Supplies & Services,"Equipment, Furniture & Materials",Purchase Equip + Materials,10/12/2020,318163,1094,Ministry Of Play Ltd
Central Services to the Public,Local Tax Collection,Revenues,Supplies & Services,"Printing, Stationery & General Office Expenses",Postage Costs,01/12/2020,318148,793.2,Royal Mail Group Ltd
Central Services to the Public,Local Tax Collection,Revenues,Supplies & Services,"Printing, Stationery & General Office Expenses",Postage Costs,01/12/2020,318148,396.6,Royal Mail Group Ltd
Housing Services,Housing Benefits ,Revenues,Supplies & Services,"Printing, Stationery & General Office Expenses",Postage Costs,01/12/2020,318148,198.3,Royal Mail Group Ltd
Central Services to the Public,Local Tax Collection,Revenues,Supplies & Services,"Printing, Stationery & General Office Expenses",Postage Costs,01/12/2020,318148,198.3,Royal Mail Group Ltd
Environmental & Regulatory,Waste management,Environmental,Employees,Indirect Employee Expenses,Agency Staff - Waged Posts,10/12/2020,320003,1623.05,24-7 Staffing
Environmental & Regulatory,Regulatory Services,Housing and Environmental Health ,Supplies & Services,Grants and subscriptions,Capital Grants,17/12/2020,321002,1948.37,Hampshire Mobility Services
"Highways, Roads & Transport",Public Transport,Plan Pol & Transport,Third Party Payments,Transport Operators in Respect of Concessionary Fares,Voluntary Orgs Reimbursement,24/12/2020,319113,1973,Andover Neighbourcare
Central Services to the Public,Management & Support Services,Legal & Democratic,Supplies & Services,Services,Legal Fees,24/12/2020,321338,1650.9,Wilkin Chapman Llp
"Highways, Roads & Transport",Public Transport,Plan Pol & Transport,Third Party Payments,Transport Operators in Respect of Concessionary Fares,Voluntary Orgs Reimbursement,24/12/2020,319112,1992,Andover Neighbourcare
Cultural & Related,Open Spaces,Environmental,Supplies & Services,Services,Training Courses,24/12/2020,321321,2000,Powell Assessments & Training
External Trading Accounts,Economic Development,Premises & Asset Management,Supplies & Services,Miscellaneous Expenses,Promotions / Special Events,16/12/2020,319983,1686.6,Keycraft Ltd
Central Services to the Public,Management & Support Services,Estates and Economic Development ,Third Party Payments,Private contractors,Main Contractor Costs,03/12/2020,317677,1700,Wake'S Decorating Ltd
Planning & Development,Development Control,Planning & Building,Supplies & Services,Services,Project Consultancy - Policy,10/12/2020,319477,2070,J H Urban Design
Central Services,Corporate & Democratic Core,Corporate & Democratic,Supplies & Services,Services,Legal Fees,24/12/2020,321634,1815,Radcliffe Chambers
Cultural & Related,Open Spaces,Community and Leisure ,Third Party Payments,Private contractors,Main Contractor Costs,03/12/2020,317678,1921,Personal Data - Data Protection Act 1998
Environmental & Regulatory,Regulatory Services,Housing and Environmental Health ,Supplies & Services,Miscellaneous Expenses,Kennel fees,10/12/2020,319114,1910.2,Three Oak Boarding Kennels
Central Services to the Public,Management & Support Services,Housing and Environmental Health ,Supplies & Services,"Equipment, Furniture & Materials",Purchase Equip + Materials,17/12/2020,320547,1947.12,Portsdown Office Ltd
External Trading Accounts,Economic Development,Premises & Asset Management,Supplies & Services,Miscellaneous Expenses,Promotions / Special Events,10/12/2020,319991,1965,Breeze People Ltd
External Trading Accounts,Economic Development,Premises & Asset Management,Supplies & Services,Miscellaneous Expenses,Promotions / Special Events,24/12/2020,320878,1965,Breeze People Ltd
Cultural & Related,Culture & Heritage,Community and Leisure ,Third Party Payments,Private contractors,Main Contractor Costs,10/12/2020,319527,1980,Ion Consulting Engineers Ltd
Cultural & Related,Recreation & Sport,Community and Leisure ,Supplies & Services,Grants and subscriptions,Capital Grants,10/12/2020,320224,2389.5,Test Valley Brass Band
Environmental & Regulatory,Waste management,Environmental,Transport Related Expenditure,Direct Transport Costs,Repair Materials,03/12/2020,318625,2000,Trash Uk Limited
External Trading Accounts,Property Investments,Premises & Asset Management,Premises related Expenditure,Repairs Alterations & Maintenance of Buildings,Salt & Gritting,01/12/2020,317645,2029.76,Gritit Ltd
Environmental & Regulatory,Regulatory Services,Housing and Environmental Health ,Supplies & Services,Grants and subscriptions,Capital Grants,22/12/2020,321536,2442.98,Lifestyle Solutions
Central Services to the Public,Management & Support Services,Finance,Supplies & Services,Services,Professional Fees,10/12/2020,320213,2500,Dc Commercial Solicitors
Central Services to the Public,Management & Support Services,Premises & Asset Management,Supplies & Services,"Equipment, Furniture & Materials",Purchase Materials (Job Cost),10/12/2020,319992,2100,Romsey Reclamation
External Trading Accounts,Business Parks,Premises & Asset Management,Premises related Expenditure,Miscellaneous Expenses,Service Charge,10/12/2020,319563,2705.57,Test Valley Borough Council
Central Services to the Public,Elections,Legal & Democratic,Supplies & Services,"Printing, Stationery & General Office Expenses",External Printing,01/12/2020,318141,2260.47,Financial Data Management Plc
Central Services to the Public,Management & Support Services,Environmental,Transport Related Expenditure,Direct Transport Costs,Diesel,10/12/2020,319115,2318.75,Wp Group Limited
Central Services to the Public,Management & Support Services,Environmental,Transport Related Expenditure,Direct Transport Costs,Diesel,17/12/2020,320749,2323.25,Wp Group Limited
Central Services to the Public,Management & Support Services,Premises & Asset Management,Supplies & Services,Services,Professional Fees,24/12/2020,321736,2359.6,Milestone Transport Planning Ltd
Cultural & Related,Recreation & Sport,Community and Leisure ,Premises related Expenditure,Grounds Maintenance Costs,Snagging Works,24/12/2020,321290,2383,Fernden Construction (Winchester) Ltd
Planning & Development,Development Control,Planning & Building,Supplies & Services,Communications & Computing,Software Maintenance,24/12/2020,321649,2383,Influential Software Services Ltd
Central Services to the Public,Management & Support Services,HR Services,Third Party Payments,Other Local Authorities,Shared Service Contract Costs,15/12/2020,319452,2396.16,Mhr International Uk Ltd
"Highways, Roads & Transport",Parking Services,Plan Pol & Transport,Supplies & Services,Communications & Computing,Computer Software,24/12/2020,321653,2451,Ina Parc Ltd
Planning & Development,Development Control,Planning & Building,Employees,Indirect Employee Expenses,Temporary Staff,03/12/2020,318603,2960,Phillips Ecology
Central Services to the Public,Management & Support Services,IT,Supplies & Services,"Equipment, Furniture & Materials",IT Supp and Serv AMP,17/12/2020,320102,2490,Internal System Ltd
Central Services to the Public,Management & Support Services,Premises & Asset Management,Third Party Payments,Other Establishments,Private Contractors,10/12/2020,319154,2552.94,Corrigenda Ltd
Central Services,Corporate & Democratic Core,Corporate & Democratic,Supplies & Services,"Printing, Stationery & General Office Expenses",External Printing,17/12/2020,320557,3103.17,Mortons Print
Planning & Development,Planning Policy,Plan Pol & Transport,Supplies & Services,Services,Project Consultancy - Policy,10/12/2020,319869,2665.31,Purcell Architecture Ltd
Cultural & Related,Open Spaces,Environmental,Transport Related Expenditure,Direct Transport Costs,Repair Materials,10/12/2020,319487,147,Md Services (Andover) Ltd
Environmental & Regulatory,Street Cleansing (not chargeable to Highways),Environmental,Transport Related Expenditure,Direct Transport Costs,Repair Materials,10/12/2020,319487,147,Md Services (Andover) Ltd
Environmental & Regulatory,Waste management,Environmental,Transport Related Expenditure,Direct Transport Costs,Repair Materials,10/12/2020,319487,84,Md Services (Andover) Ltd
Environmental & Regulatory,Waste management,Environmental,Transport Related Expenditure,Direct Transport Costs,Repair Materials,10/12/2020,319487,42,Md Services (Andover) Ltd
Central Services to the Public,Management & Support Services,Environmental,Transport Related Expenditure,Direct Transport Costs,Workshop Consumables,10/12/2020,319487,676.19,Md Services (Andover) Ltd
Central Services to the Public,Management & Support Services,Environmental,Transport Related Expenditure,Direct Transport Costs,Repair Materials,10/12/2020,319487,1578.12,Md Services (Andover) Ltd
Central Services to the Public,Elections,Legal & Democratic,Supplies & Services,"Printing, Stationery & General Office Expenses",External Printing,01/12/2020,318142,2691.44,Financial Data Management Plc
Central Services to the Public,Management & Support Services,IT,Supplies & Services,Communications & Computing,Software Maintenance,10/12/2020,319571,2700,Automated Intelligence Ltd
Environmental & Regulatory,Regulatory Services,Housing and Environmental Health ,Supplies & Services,Grants and subscriptions,Capital Grants,22/12/2020,321537,3311.38,Personal Data - Data Protection Act 1998
Central Services to the Public,Management & Support Services,Environmental,Transport Related Expenditure,Direct Transport Costs,Diesel,17/12/2020,320539,2788.83,Wp Group Limited
Central Services to the Public,Management & Support Services,IT,Supplies & Services,Communications & Computing,Software Maintenance,22/12/2020,321277,2907.75,Softcat Ltd
Central Services,Corporate & Democratic Core,Corporate & Democratic,Supplies & Services,Services,Professional Fees,03/12/2020,317967,3000,New Masterplanning
Cultural & Related,Open Spaces,Community and Leisure ,Premises related Expenditure,Grounds Maintenance Costs,Non Contract Tree Works,10/12/2020,318133,87.92,Gristwood & Toms Ltd
Cultural & Related,Open Spaces,Community and Leisure ,Premises related Expenditure,Repairs Alterations & Maintenance of Buildings,Estates premises costs - AMP,10/12/2020,318133,2945.21,Gristwood & Toms Ltd
Central Services to the Public,Management & Support Services,Environmental,Transport Related Expenditure,Direct Transport Costs,Diesel,03/12/2020,318320,3051.98,Wp Group Limited
Planning & Development,Economic Development,Planning Policy & Economic Development ,Supplies & Services,Miscellaneous Expenses,Promotions / Special Events,10/12/2020,319979,3056.25,Popup Business School
Environmental & Regulatory,Waste management,Environmental,Supplies & Services,"Printing, Stationery & General Office Expenses",External Printing,22/12/2020,319473,3115.25,Cammegh Davies Fleming
Central Services to the Public,Management & Support Services,IT,Supplies & Services,"Equipment, Furniture & Materials",IT Supp and Serv AMP,10/12/2020,319059,3284.15,Bt Business Direct
Planning & Development,Development Control,Planning & Building,Employees,Indirect Employee Expenses,Post Entry Training,10/12/2020,319867,4250,Oxford Brookes University
Central Services to the Public,Management & Support Services,IT,Supplies & Services,"Equipment, Furniture & Materials",IT Supp and Serv AMP,03/12/2020,318635,3575,Bt Business Direct
Environmental & Regulatory,Regulatory Services,Housing and Environmental Health ,Supplies & Services,Grants and subscriptions,Capital Grants,03/12/2020,319149,4305.45,Lifestyle Solutions
Cultural & Related,Recreation & Sport,Community and Leisure ,Premises related Expenditure,Repairs Alterations & Maintenance of Buildings,Estates premises costs - AMP,15/12/2020,320534,3600,Ams Contracting Ltd
Environmental & Regulatory,Regulatory Services,Housing and Environmental Health ,Supplies & Services,Grants and subscriptions,Capital Grants,09/12/2020,319980,4424.68,A & E Builders
Cultural & Related,Recreation & Sport,Community and Leisure ,Supplies & Services,Services,Professional Fees,10/12/2020,319119,3777.5,Blake Morgan
Environmental & Regulatory,Street Cleansing (not chargeable to Highways),Environmental,Employees,Indirect Employee Expenses,Agency Staff - Waged Posts,24/12/2020,321665,588.99,24-7 Staffing
Environmental & Regulatory,Waste management,Environmental,Employees,Indirect Employee Expenses,Agency Staff - Waged Posts,24/12/2020,321665,2733.91,24-7 Staffing
Environmental & Regulatory,Waste management,Environmental,Employees,Indirect Employee Expenses,Agency Staff - Waged Posts,24/12/2020,321665,483.22,24-7 Staffing
Environmental & Regulatory,Waste & Recycling Management,Environmental,Supplies & Services,"Equipment, Furniture & Materials",Purchase Equip + Materials,01/12/2020,318509,3864,Glasdon Uk Ltd
External Trading Accounts,Economic Development,Premises & Asset Management,Supplies & Services,Miscellaneous Expenses,Promotions / Special Events,24/12/2020,321346,3890,Breeze People Ltd
External Trading Accounts,Business Parks,Premises & Asset Management,Premises related Expenditure,Cleaning and domestic supplies,Contract Cleaning - Non Estates,24/12/2020,321280,207.01,Hi-Spec Facilities Services Plc
Central Services to the Public,Management & Support Services,Premises & Asset Management,Premises related Expenditure,Cleaning and domestic supplies,Contract Cleaning - Non Estates,24/12/2020,321280,172.51,Hi-Spec Facilities Services Plc
Environmental & Regulatory,Regulatory Services,Premises & Asset Management,Premises related Expenditure,Cleaning and domestic supplies,Contract Cleaning - Non Estates,24/12/2020,321280,1932.11,Hi-Spec Facilities Services Plc
Cultural & Related,Recreation & Sport,Community and Leisure ,Premises related Expenditure,Cleaning and domestic supplies,Contract Cleaning - Non Estates,24/12/2020,321280,724.54,Hi-Spec Facilities Services Plc
Environmental & Regulatory,"Cemetery, Cremation and Mortuary Services",Community and Leisure ,Premises related Expenditure,Cleaning and domestic supplies,Contract Cleaning - Non Estates,24/12/2020,321280,34.5,Hi-Spec Facilities Services Plc
Cultural & Related,Open Spaces,Community and Leisure ,Premises related Expenditure,Cleaning and domestic supplies,Contract Cleaning - Non Estates,24/12/2020,321280,724.56,Hi-Spec Facilities Services Plc
"Highways, Roads & Transport",Parking Services,Plan Pol & Transport,Premises related Expenditure,Cleaning and domestic supplies,Contract Cleaning - Non Estates,24/12/2020,321280,103.5,Hi-Spec Facilities Services Plc
Environmental & Regulatory,Regulatory Services,Housing and Environmental Health ,Supplies & Services,Grants and subscriptions,Capital Grants,10/12/2020,320222,4736,Easy Care Systems
Central Services,Corporate & Democratic Core,Corporate & Democratic,Supplies & Services,Services,Project Consultancy - Policy,24/12/2020,321674,3950,Rpt Consulting Ltd
Environmental & Regulatory,Waste management,Environmental,Employees,Indirect Employee Expenses,Agency Staff - Waged Posts,17/12/2020,320903,2827.19,24-7 Staffing
Environmental & Regulatory,Waste management,Environmental,Employees,Indirect Employee Expenses,Agency Staff - Waged Posts,17/12/2020,320903,1125.53,24-7 Staffing
Environmental & Regulatory,Regulatory Services,Housing and Environmental Health ,Supplies & Services,Grants and subscriptions,Capital Grants,10/12/2020,320221,4791.44,Nhp (Romsey) Ltd
Environmental & Regulatory,Regulatory Services,Housing and Environmental Health ,Supplies & Services,Grants and subscriptions,Capital Grants,17/12/2020,320997,5179.01,Bartram Building Maintenance Services
Environmental & Regulatory,Street Cleansing (not chargeable to Highways),Environmental,Employees,Indirect Employee Expenses,Agency Staff - Waged Posts,10/12/2020,320002,96.15,24-7 Staffing
Environmental & Regulatory,Waste management,Environmental,Employees,Indirect Employee Expenses,Agency Staff - Waged Posts,10/12/2020,320002,4511.01,24-7 Staffing
Environmental & Regulatory,Street Cleansing (not chargeable to Highways),Environmental,Employees,Indirect Employee Expenses,Agency Staff - Waged Posts,17/12/2020,320215,172.2,24-7 Staffing
Environmental & Regulatory,Waste management,Environmental,Employees,Indirect Employee Expenses,Agency Staff - Waged Posts,17/12/2020,320215,4533.58,24-7 Staffing
Housing Services,"Housing strategy, advice and enabling",Housing and Environmental Health ,Supplies & Services,Communications & Computing,Computer Hardware,03/12/2020,317185,4800,Civica Uk Ltd
External Trading Accounts,Business Parks,Premises & Asset Management,Premises related Expenditure,Repairs Alterations & Maintenance of Buildings,Building Maint - Non Estates,24/12/2020,321297,4998.85,Kier Property Developments Ltd.
Planning & Development,Planning Policy,Plan Pol & Transport,Supplies & Services,Services,Project Consultancy - Policy,24/12/2020,317917,5000,Fareham Borough Council
Cultural & Related,Open Spaces,Community and Leisure ,Supplies & Services,Services,Training Courses,03/12/2020,316574,6300,University Of Gloucestershire
External Trading Accounts,Business Parks,Premises & Asset Management,Premises related Expenditure,Repairs Alterations & Maintenance of Buildings,Estates premises costs - AMP,03/12/2020,319127,6500,Roofco Ltd
Central Services,Corporate & Democratic Core,Corporate & Democratic,Supplies & Services,Communications & Computing,Computer Software,10/12/2020,319056,5735,Pentagull Ltd
Environmental & Regulatory,Regulatory Services,Housing and Environmental Health ,Supplies & Services,Grants and subscriptions,Capital Grants,22/12/2020,321538,7137.63,Shield Building Services (Uk) Ltd
External Trading Accounts,Business Parks,Premises & Asset Management,Premises related Expenditure,Miscellaneous Expenses,Service Charge,10/12/2020,319565,7397.97,Test Valley Borough Council
Central Services to the Public,Management & Support Services,Estates and Economic Development ,Third Party Payments,Private contractors,Main Contractor Costs,03/12/2020,318164,6374,Ministry Of Play Ltd
External Trading Accounts,Property Investments,Premises & Asset Management,Supplies & Services,Services,Professional Fees,24/12/2020,321728,6375,Vail Williams Llp
Central Services to the Public,Management & Support Services,IT,Supplies & Services,Communications & Computing,Communication Links,24/12/2020,319550,6800,Virgin Media Payments Ltd
Environmental & Regulatory,Regulatory Services,Housing and Environmental Health ,Supplies & Services,Grants and subscriptions,Capital Grants,17/12/2020,320995,8388.57,Hp Contracts
Central Services to the Public,Management & Support Services,IT,Supplies & Services,"Equipment, Furniture & Materials",Maintenance Equip + Materials,22/12/2020,318601,7100,Dssl Group Ltd
Cultural & Related,Recreation & Sport,Community and Leisure ,Supplies & Services,Services,Professional Fees,01/12/2020,318158,7227.5,Blake Morgan
Central Services to the Public,Management & Support Services,Environmental,Transport Related Expenditure,Direct Transport Costs,Diesel,03/12/2020,318622,7242.67,Wp Group Limited
Central Services to the Public,Management & Support Services,Environmental,Transport Related Expenditure,Direct Transport Costs,Diesel,17/12/2020,320538,7479.29,Wp Group Limited
Central Services to the Public,Management & Support Services,Estates and Economic Development ,Third Party Payments,Private contractors,Main Contractor Costs,17/12/2020,320100,7499.25,Elevate Uk Lifts Ltd
Cultural & Related,Open Spaces,Community and Leisure ,Premises related Expenditure,Repairs Alterations & Maintenance of Buildings,Estates premises costs - AMP,17/12/2020,320920,2258,Personal Data - Data Protection Act 1998
Cultural & Related,Open Spaces,Community and Leisure ,Premises related Expenditure,Grounds Maintenance Costs,Gm - Additional Works,17/12/2020,320920,5702,Personal Data - Data Protection Act 1998
Environmental & Regulatory,Regulatory Services,Housing and Environmental Health ,Supplies & Services,Grants and subscriptions,Capital Grants,17/12/2020,320994,10000,Bevan & Co Building
Central Services to the Public,Local Tax Collection,Revenues,Supplies & Services,Communications & Computing,Software Maintenance,03/12/2020,318629,8438,Victoria Solutions Limited
Central Services to the Public,Management & Support Services,Estates and Economic Development ,Third Party Payments,Private contractors,Main Contractor Costs,17/12/2020,320895,8803.48,Corrigenda Ltd
Central Services,Corporate & Democratic Core,Corporate & Democratic,Supplies & Services,Services,Professional Fees,24/12/2020,321650,10000,Newsteer Ltd
Environmental & Regulatory,Regulatory Services,Housing and Environmental Health ,Supplies & Services,Grants and subscriptions,Capital Grants,16/12/2020,320896,13013.46,A & E Builders
Central Services to the Public,Management & Support Services,Estates and Economic Development ,Third Party Payments,Private contractors,Main Contractor Costs,17/12/2020,320894,11088.05,Corrigenda Ltd
Environmental & Regulatory,Community Development,Community and Leisure ,Supplies & Services,Grants & Subscriptions,Contributions,10/12/2020,320210,15000,Andover Town Centre Bid Ltd
Central Services to the Public,Local Tax Collection,Revenues,Supplies & Services,Miscellaneous Expenses,Other Miscellaneous Costs,10/12/2020,319492,17754.75,Andover Town Centre Bid Ltd
Cultural & Related,Regulatory Services,Community and Leisure ,Third Party Payments,Private contractors,Main Contractor Costs,17/12/2020,319453,17952.1,Rocon Contractors Ltd
Cultural & Related,Recreation & Sport,Community and Leisure ,Supplies & Services,Grants and subscriptions,Capital Grants,10/12/2020,320223,25000,Andover Salto Gym Club Ltd
Cultural & Related,Open Spaces,Community and Leisure ,Premises related Expenditure,Grounds Maintenance Costs,Non Contract Tree Works,10/12/2020,315716,367.35,Gristwood & Toms Ltd
Cultural & Related,Open Spaces,Community and Leisure ,Premises related Expenditure,Repairs Alterations & Maintenance of Buildings,Estates premises costs - AMP,10/12/2020,315716,26356.55,Gristwood & Toms Ltd
Central Services to the Public,Management & Support Services,Premises & Asset Management,Supplies & Services,Services,Professional Fees,17/12/2020,320563,27700,Vail Williams Llp
Central Services to the Public,Management & Support Services,Premises & Asset Management,Premises related Expenditure,Repairs Alterations & Maintenance of Buildings,General Repairs,03/12/2020,319066,37739.55,Rocon Contractors Ltd
Environmental & Regulatory,Regulatory Services,Premises & Asset Management,Premises related Expenditure,Cleaning and domestic supplies,Contract Cleaning - Non Estates,17/12/2020,320871,13822.9,Test Valley Borough Council
"Highways, Roads & Transport",Parking Services,Plan Pol & Transport,Supplies & Services,Services,Professional Fees,17/12/2020,320871,35544.6,Test Valley Borough Council
External Trading Accounts,Business Parks,Premises & Asset Management,Premises related Expenditure,Miscellaneous Expenses,Service Charge,10/12/2020,319564,51733.72,Test Valley Borough Council
External Trading Accounts,Business Parks,Premises & Asset Management,Supplies & Services,Services,Professional Fees,24/12/2020,320554,46390.29,Kier Ventures Ltd
External Trading Accounts,Business Parks,Premises & Asset Management,Premises related Expenditure,Miscellaneous Expenses,Service Charge,10/12/2020,319554,56863.11,Test Valley Borough Council
Central Services to the Public,Management & Support Services,Estates and Economic Development ,Third Party Payments,Private contractors,Main Contractor Costs,17/12/2020,320993,56662.54,Proludic Ltd
